fUSD/lending_fUSD_20251228
["ID","MTS","AMOUNT","RATE_DAILY","PERIOD"]
[399957527,1766941840666,-937939.04295271,0.00014621,2]
[399957529,1766941840675,-200.0,0.00014697,2]
[399957531,1766941840684,-29918.8137,0.00014721,2]
[399957533,1766941840693,-4102.637,0.00014721,2]
[399957535,1766941840702,-25952.2054,0.00014721,2]
[399957537,1766941840711,-1901.4292,0.00014721,2]
[399957539,1766941840720,-194.27658486,0.00014721,2]
[399957541,1766941840729,-15221.84004317,0.00014721,2]
[399957543,1766941840738,-200.0,0.00014761,2]
[399957545,1766941840753,-504.00666552,0.00014812,2]
[399957548,1766941840766,-201.23401647,0.00014812,2]
[399957550,1766941840775,-200.0,0.00014812,2]
[399957552,1766941840785,-1032.25,0.00014819,2]
[399957554,1766941840794,-500.0,0.0001482,2]
[399957556,1766941840804,-500.0,0.0001482,2]
[399957558,1766941840813,-500.0,0.0001482,2]
[399957560,1766941840822,-500.0,0.0001482,2]
[399957562,1766941840831,-500.0,0.0001482,2]
[399957564,1766941840840,-500.0,0.0001482,2]
[399957566,1766941840850,-500.0,0.0001482,2]
[399957568,1766941840858,-500.0,0.0001482,2]
[399957570,1766941840867,-190.55361039,0.0001482,2]
[399957572,1766941840877,-7099.71899622,0.00014821,2]
[399957574,1766941840886,-1000.0,0.00014921,2]
[399957576,1766941840895,-15221.84004313,0.00014963,2]
[399957577,1766941840904,-500.0,0.0001502,2]
[399957579,1766941840914,-500.0,0.0001502,2]
[399957582,1766941840923,-500.0,0.0001502,2]
[399957583,1766941840935,-500.0,0.0001502,2]
[399957586,1766941840944,-7099.71899622,0.00015052,2]
[399957588,1766941840954,-166.66,0.00015056,2]
[399957590,1766941840965,-600.0,0.00015068,2]
[399957592,1766941840974,-1032.25,0.00015093,2]
[399957594,1766941840983,-15221.84004313,0.00015205,2]
[399957596,1766941840992,-7099.71899622,0.00015283,2]
[399957598,1766941841001,-150.0,0.00015288,2]
[399957600,1766941841010,-150.0,0.00015288,2]
[399957603,1766941841020,-150.0,0.00015288,2]
[399957606,1766941841029,-150.0,0.00015288,2]
[399957608,1766941841038,-150.0,0.00015288,2]
[399957610,1766941841048,-150.0,0.00015288,2]
[399957612,1766941841057,-509.03802287,0.00015313,2]
[399957614,1766941841066,-1032.25,0.00015367,2]
[399957616,1766941841075,-999.0,0.00015394,3]
[399957618,1766941841084,-392.83,0.00015443,2]
[399957620,1766941841093,-15221.84004313,0.00015447,2]
[399957622,1766941841102,-150.0,0.00015458,2]
[399957624,1766941841111,-7099.71899622,0.00015514,2]
[399957625,1766941841120,-1000.0,0.00015576,2]
[399957627,1766941841129,-150.0,0.00015627,2]
[399957629,1766941841138,-1032.25,0.00015641,2]
[399957631,1766941841147,-500.0,0.00015666,2]
[399957633,1766941841156,-15221.84004313,0.00015689,2]
[399957635,1766941841166,-151.0,0.0001572,2]
[399957637,1766941841175,-151.0,0.0001572,2]
[399957639,1766941841184,-151.0,0.00015724,2]
[399957641,1766941841193,-151.0,0.00015724,2]
[399957643,1766941841203,-7099.71899622,0.00015745,2]
[399957645,1766941841212,-255.0,0.00015745,2]
[399957647,1766941841223,-150.0,0.00015797,2]
[399957649,1766941841232,-500.0,0.00015865,2]
[399957651,1766941841241,-166.66,0.00015885,2]
[399957653,1766941841250,-1032.25,0.00015915,2]
[399957655,1766941841260,-15221.84004313,0.00015932,2]
[399957657,1766941841269,-150.0,0.00015967,2]
[399957659,1766941841278,-196.74687624,0.00015973,2]
[399957661,1766941841287,-500.0,0.00015973,2]
[399957663,1766941841297,-7099.71899622,0.00015976,2]
[399957665,1766941841307,-500.0,0.00016056,2]
[399957667,1766941841316,-150.0,0.00016137,2]
[399957669,1766941841326,-168.0,0.00016169,2]
[399957671,1766941841335,-15221.84004313,0.00016174,2]
[399957673,1766941841349,-1032.25,0.00016189,2]
[399957675,1766941841358,-346.0,0.00016201,2]
[399957677,1766941841367,-7099.71899622,0.00016207,2]
[399957679,1766941841377,-150.0,0.00016307,2]
[399957681,1766941841388,-15221.84004313,0.00016416,2]
[399957683,1766941841398,-7099.71899622,0.00016438,2]
[399957685,1766941841407,-500.0,0.00016438,2]
[399957687,1766941841418,-500.0,0.00016438,2]
[399957689,1766941841427,-500.0,0.00016438,2]
[399957691,1766941841439,-500.0,0.00016438,2]
[399957693,1766941841458,-500.0,0.00016438,2]
[399957695,1766941841467,-500.0,0.00016438,2]
[399957697,1766941841476,-500.0,0.00016438,2]
[399957699,1766941841485,-500.0,0.00016438,2]
[399957701,1766941841493,-500.0,0.00016438,2]
[399957703,1766941841502,-500.0,0.00016438,2]
[399957704,1766941841511,-500.0,0.00016438,2]
[399957707,1766941841521,-500.0,0.00016438,2]
[399957708,1766941841532,-500.0,0.00016438,2]
[399957710,1766941841542,-500.0,0.00016438,2]
[399957711,1766941841551,-500.0,0.00016438,2]
[399957712,1766941841560,-649.16458165,0.00016438,2]
[399957713,1766941841569,-500.0,0.00016438,2]
[399957714,1766941841578,-500.0,0.00016438,2]
[399957715,1766941841587,-500.0,0.00016438,2]
[399957716,1766941841596,-500.0,0.00016438,2]
[399957717,1766941841605,-500.0,0.00016438,2]
[399957718,1766941841614,-500.0,0.00016438,2]
[399957719,1766941841624,-500.0,0.00016438,2]
[399957720,1766941841634,-500.0,0.00016438,2]
[399957721,1766941841644,-500.0,0.00016438,2]
[399957722,1766941841653,-500.0,0.00016438,2]
[399957723,1766941841663,-500.0,0.00016438,2]
[399957724,1766941841672,-500.0,0.00016438,2]
[399957725,1766941841682,-500.0,0.00016438,2]
[399957726,1766941841691,-500.0,0.00016438,2]
[399957727,1766941841701,-500.0,0.00016438,2]
[399957728,1766941841710,-7320.8,0.00016438,2]
[399957729,1766941841719,-1032.25,0.00016463,2]
[399957730,1766941841729,-150.0,0.00016477,2]
[399957732,1766941841738,-1000.0,0.00016521,2]
[399957733,1766941841747,-168.0,0.00016544,2]
[399957735,1766941841756,-168.0,0.0001658,2]
[399957737,1766941841765,-346.0,0.0001658,2]
[399957739,1766941841774,-168.0,0.00016583,2]
[399957741,1766941841783,-168.0,0.00016589,2]
[399957743,1766941841793,-1740.9,0.00016627,2]
[399957745,1766941841802,-150.0,0.00016647,2]
[399957747,1766941841812,-346.0,0.00016648,2]
[399957749,1766941841821,-15221.84004313,0.00016658,2]
[399957751,1766941841830,-162.15898507,0.0001666,2]
[399957753,1766941841839,-212.82,0.00016662,2]
[399957755,1766941841848,-7099.71899622,0.00016669,2]
[399957757,1766941841858,-500.0,0.00016699,2]
[399957759,1766941841867,-500.0,0.00016699,2]
[399957761,1766941841876,-1587.0,0.00016699,2]
[399957763,1766941841885,-500.0,0.00016699,2]
[399957765,1766941841895,-166.66,0.00016713,2]
[399957766,1766941841904,-500.0,0.00016726,2]
[399957767,1766941841913,-500.0,0.00016726,2]
[399957768,1766941841922,-1587.0,0.00016726,2]
[399957770,1766941841931,-515.48135853,0.00016726,2]
[399957772,1766941841940,-168.0,0.00016734,2]
[399957774,1766941841950,-1032.31322688,0.00016737,2]
[399957776,1766941841959,-500.0,0.00016754,2]
[399957778,1766941841969,-500.0,0.00016754,2]
[399957780,1766941841979,-1587.0,0.00016754,2]
[399957782,1766941841988,-168.0,0.00016765,2]
[399957785,1766941841999,-500.0,0.00016781,2]
[399957787,1766941842009,-500.0,0.00016781,2]
[399957789,1766941842019,-1587.0,0.00016781,2]
[399957791,1766941842028,-500.0,0.00016809,2]
[399957793,1766941842037,-500.0,0.00016809,2]
[399957795,1766941842046,-1587.0,0.00016809,2]
[399957796,1766941842058,-150.0,0.00016816,2]
[399957799,1766941842068,-500.0,0.00016836,2]
[399957801,1766941842078,-1587.0,0.00016836,2]
[399957803,1766941842086,-500.0,0.00016863,2]
[399957805,1766941842096,-1587.0,0.00016863,2]
[399957807,1766941842104,-311.20663021,0.00016891,2]
[399957809,1766941842115,-1587.0,0.00016891,2]
[399957810,1766941842124,-7099.71899622,0.000169,2]
[399957812,1766941842133,-15221.84004313,0.000169,2]
[399957814,1766941842143,-202.5810054,0.000169,2]
[399957816,1766941842152,-172.52224244,0.000169,2]
[399957818,1766941842161,-3542.0,0.000169,2]
[399957820,1766941842171,-1587.0,0.00016918,2]
[399957822,1766941842180,-150.99,0.00016922,2]
[399957825,1766941842190,-1587.0,0.00016946,2]
[399957827,1766941842200,-1607.273,0.00016959,2]
[399957829,1766941842209,-181.608,0.00016959,2]
[399957831,1766941842218,-329.0,0.00016959,2]
[399957833,1766941842227,-1587.0,0.00016973,2]
[399957835,1766941842236,-150.0,0.00016973,2]
[399957837,1766941842245,-331.16563043,0.00016976,2]
[399957839,1766941842255,-150.0,0.00016986,2]
[399957841,1766941842265,-176.01870488,0.00016986,2]
[399957843,1766941842274,-14338.6978242,0.00016998,2]
[399957845,1766941842283,-5480.7409538,0.00016998,2]
[399957847,1766941842292,-236690.4662512,0.00016998,2]
[399957849,1766941842302,-1640.6120865,0.00016998,2]
[399957851,1766941842311,-45185.0582709,0.00016998,2]
[399957853,1766941842321,-5073.1499704,0.00016998,2]
[399957855,1766941842331,-1090.24693266,0.00016999,5]
[399957857,1766941842343,-1090.24693266,0.00016999,5]
[399957859,1766941842353,-1090.24693266,0.00016999,5]
[399957861,1766941842362,-1090.24693267,0.00016999,5]
[399957863,1766941842371,-646.48024776,0.00016999,2]
[399957865,1766941842383,-300.0,0.00016999,2]
[399957867,1766941842392,-300.0,0.00016999,2]
[399957869,1766941842401,-300.0,0.00016999,2]
[399957871,1766941842409,-300.0,0.00016999,2]
[399957873,1766941842420,-666.0,0.00016999,2]
[399957875,1766941842429,-1415493.00475051,0.00017,2]
[399957878,1766941842446,-4365.43074627,0.00017,2]
[399957936,1766941843984,-691.24287986,0.00017,2]
[399957937,1766941843998,-1292.21190686,0.00017,2]
[399957938,1766941844010,-1573.13458229,0.00017,2]
[399957939,1766941844021,-1650.68809694,0.00017,2]
[399957940,1766941844032,-916.73474021,0.00017,2]
[399957941,1766941844043,-877.07771091,0.00017,2]
[399957942,1766941844054,-656.42984484,0.00017,2]
[399957943,1766941844066,-480.14190281,0.00017,2]
[399957944,1766941844076,-2460.31997016,0.00017,2]
[399957945,1766941844087,-9122.49793244,0.00017,2]
[399957946,1766941844877,-834.84277497,0.00017,2]
[399957947,1766941844889,-4767.59721455,0.00017,2]
[399957948,1766941844901,-870810.49689663,0.00017,2]
[399957986,1766941846264,-151.0,0.00016407,2]
[399957987,1766941846275,-151.0,0.00016407,2]
[399957988,1766941846284,-3209.30381811,0.00017,2]
[399957989,1766941846322,-5893.178389,0.00017,2]
[399957990,1766941846516,-986.89522002,0.00017,2]
[399957994,1766941846738,-380.99013,0.00017,2]
[399957995,1766941846760,-580.0299999,0.00017,2]
[399957997,1766942063933,1655.03828342,0.000301,120]
[399957998,1766942188747,150.0,0.00030127,120]
[399957999,1766942224083,150.0,0.00030127,120]
[399958000,1766942228852,150.0,0.00030127,120]
[399958001,1766942507074,400.0,0.00030136,120]
[399958002,1766942783226,416.26693883,0.00030136,120]
[399958003,1766942790113,-269.0,0.00014421,2]
[399958004,1766942790136,-183.67368069,0.00014421,2]
[399958005,1766942790156,-150.0,0.0001452,2]
[399958006,1766942790179,-18.77053767,0.0001452,2]
[399958008,1766942872331,373.06930654,0.00030136,120]
[399958021,1766943031505,-172.90280363,0.00014419,2]
[399958022,1766943031515,-344.0,0.00014419,2]
[399958023,1766943031524,-150.0,0.00014419,2]
[399958024,1766943031533,-174.74135252,0.00014419,2]
[399958025,1766943031551,-277.11584385,0.0001442,2]
[399958026,1766943031564,-63.44601071,0.0001442,2]
[399958027,1766943031574,-500.0,0.0001442,2]
[399958028,1766943031583,-500.05783873,0.0001442,2]
[399958029,1766943031593,-213.55231672,0.0001442,2]
[399958030,1766943031602,-500.0,0.0001442,2]
[399958031,1766943031612,-212.73729775,0.0001442,2]
[399958032,1766943031622,-463.46176413,0.0001442,2]
[399958033,1766943031631,-500.0,0.0001442,2]
[399958034,1766943031641,-500.0,0.0001442,2]
[399958035,1766943031651,-500.0,0.0001442,2]
[399958036,1766943031660,-500.0,0.0001442,2]
[399958037,1766943031669,-500.0,0.0001442,2]
[399958039,1766943031678,-500.0,0.0001442,2]
[399958041,1766943031688,-500.0,0.0001442,2]
[399958043,1766943031698,-500.0,0.0001442,2]
[399958045,1766943031707,-500.0,0.0001442,2]
[399958046,1766943031716,-500.0,0.0001442,2]
[399958048,1766943031725,-500.0,0.0001442,2]
[399958050,1766943031735,-453.62848322,0.0001442,2]
[399958052,1766943031745,-500.0,0.0001442,2]
[399958054,1766943031754,-500.0,0.0001442,2]
[399958056,1766943031763,-500.0,0.0001442,2]
[399958058,1766943031772,-500.0,0.0001442,2]
[399958061,1766943031782,-500.0,0.0001442,2]
[399958063,1766943031791,-500.0,0.0001442,2]
[399958065,1766943031800,-500.0,0.0001442,2]
[399958067,1766943031809,-500.0,0.0001442,2]
[399958069,1766943031818,-103952.30667486,0.00014421,2]
[399958121,1766943037447,-12425.49119927,0.00014421,2]
[399958122,1766943037459,-1120.43290127,0.00014421,2]
[399958123,1766943037501,-5095.73718748,0.00014421,2]
[399958124,1766943037511,-11142.39539457,0.00014421,2]
[399958125,1766943037525,-12500.79331337,0.00014421,2]
[399958126,1766943037555,-635.82318134,0.00014421,2]
[399958128,1766943037614,-1282.2401957,0.00014421,2]
[399958207,1766943039447,-409194.13616515,0.00014421,2]
[399958208,1766943039458,-8635.59488096,0.00014421,2]
[399958209,1766943039500,-387.387,0.00014421,2]
[399958210,1766943039513,-78921.91925055,0.00014421,2]
[399958211,1766943039523,-755.77686357,0.00014421,2]
[399958212,1766943039535,-2769.11178904,0.00014421,2]
[399958213,1766943039609,-573.674504,0.00014421,2]
[399958214,1766943039663,-899.99975,0.00014421,2]
[399958215,1766943039720,-269.64599,0.00014421,2]
[399958216,1766943039732,-4314.1106964,0.00014421,2]
[399958217,1766943039743,-345123.42306247,0.00014421,2]
[399958218,1766943039753,-509.03802287,0.00014519,2]
[399958219,1766943039763,-29918.8137,0.00014521,2]
[399958220,1766943039772,-4102.637,0.00014521,2]
[399958221,1766943039782,-1901.4292,0.00014521,2]
[399958222,1766943039791,-172.59380933,0.00014521,2]
[399958223,1766943039801,-7355.78727552,0.00014521,2]
[399958224,1766943039810,-500.0,0.00014573,2]
[399958225,1766943039819,-254.67001786,0.00014573,2]
[399958226,1766943039829,-500.0,0.00014573,2]
[399958227,1766943039838,-158.58,0.00014586,2]
[399958228,1766943039847,-201.23401647,0.00014612,2]
[399958229,1766943039856,-200.0,0.00014612,2]
[399958230,1766943039866,-504.00666552,0.00014612,2]
[399958231,1766943039875,-1032.25,0.00014619,2]
[399958232,1766943039884,-500.0,0.0001462,2]
[399958233,1766943039893,-500.0,0.0001462,2]
[399958234,1766943039903,-500.0,0.0001462,2]
[399958235,1766943039914,-500.0,0.0001462,2]
[399958236,1766943039923,-500.0,0.0001462,2]
[399958238,1766943039933,-500.0,0.0001462,2]
[399958239,1766943039943,-500.0,0.0001462,2]
[399958240,1766943039952,-500.0,0.0001462,2]
[399958241,1766943039961,-190.55361039,0.0001462,2]
[399958242,1766943039971,-500.0,0.0001462,2]
[399958243,1766943039979,-500.0,0.0001462,2]
[399958245,1766943039990,-500.0,0.0001462,2]
[399958246,1766943039999,-500.0,0.0001462,2]
[399958247,1766943040008,-1000.0,0.00014721,2]
[399958248,1766943040020,-500.0,0.00014776,2]
[399958249,1766943040029,-15221.84004313,0.00014785,2]
[399958250,1766943040039,-7355.78727548,0.00014785,2]
[399958251,1766943040050,-500.0,0.00014803,2]
[399958252,1766943040060,-500.0,0.00014831,2]
[399958253,1766943040070,-500.0,0.00014858,2]
[399958254,1766943040079,-500.0,0.00014886,2]
[399958255,1766943040089,-1032.25,0.00014893,2]
[399958256,1766943040099,-326.69385509,0.00014992,2]
[399958257,1766943040113,-15221.84004313,0.0001505,2]
[399958258,1766943040123,-7355.78727548,0.0001505,2]
[399958259,1766943040133,-1852.42,0.00015078,2]
[399958260,1766943040142,-7406.89,0.00015088,2]
[399958261,1766943040151,-1000.0,0.00015121,2]
[399958262,1766943040162,-1000.0,0.00015121,2]
[399958263,1766943040173,-1032.25,0.00015167,2]
[399958264,1766943040183,-150.0,0.00015288,2]
[399958265,1766943040191,-150.0,0.00015288,2]
[399958266,1766943040202,-150.0,0.00015288,2]
[399958267,1766943040212,-150.0,0.00015288,2]
[399958268,1766943040221,-150.0,0.00015288,2]
[399958269,1766943040231,-150.0,0.00015288,2]
[399958270,1766943040240,-15221.84004313,0.00015314,2]
[399958271,1766943040249,-7355.78727548,0.00015314,2]
[399958272,1766943040258,-150.0,0.00015373,2]
[399958273,1766943040267,-1032.25,0.00015441,2]
[399958274,1766943040276,-150.0,0.00015458,2]
[399958275,1766943040286,-255.0,0.00015543,2]
[399958276,1766943040297,-15221.84004313,0.00015578,2]
[399958277,1766943040307,-7355.78727548,0.00015578,2]
[399958278,1766943040316,-1587.0,0.00015592,2]
[399958279,1766943040326,-500.0,0.00015592,2]
[399958280,1766943040610,-1587.0,0.00015619,2]
[399958281,1766943040621,-500.0,0.00015619,2]
[399958282,1766943040630,-150.0,0.00015627,2]
[399958283,1766943040640,-1587.0,0.00015647,2]
[399958284,1766943040649,-500.0,0.00015647,2]
[399958285,1766943040659,-1587.0,0.00015674,2]
[399958286,1766943040668,-500.0,0.00015674,2]
[399958287,1766943040678,-1587.0,0.00015702,2]
[399958288,1766943040688,-500.0,0.00015702,2]
[399958289,1766943040698,-1032.25,0.00015715,2]
[399958290,1766943040708,-1587.0,0.00015729,2]
[399958291,1766943040717,-500.0,0.00015729,2]
[399958292,1766943040727,-1587.0,0.00015756,2]
[399958293,1766943040736,-500.0,0.00015756,2]
[399958294,1766943040746,-1587.0,0.00015784,2]
[399958295,1766943040756,-311.20663021,0.00015784,2]
[399958296,1766943040766,-150.0,0.00015797,2]
[399958297,1766943040776,-1587.0,0.00015811,2]
[399958298,1766943040786,-1587.0,0.00015839,2]
[399958299,1766943040798,-15221.84004313,0.00015843,2]
[399958300,1766943040808,-7355.78727548,0.00015843,2]
[399958301,1766943040817,-1587.0,0.00015866,2]
[399958302,1766943040827,-1587.0,0.00015893,2]
[399958303,1766943040836,-1587.0,0.00015921,2]
[399958304,1766943040846,-1587.0,0.00015948,2]
[399958305,1766943040855,-150.0,0.00015967,2]
[399958306,1766943040865,-500.0,0.00015973,2]
[399958307,1766943040874,-1587.0,0.00015976,2]
[399958308,1766943040884,-1032.25,0.00015989,2]
[399958309,1766943040893,-98420.09748413,0.00016,2]
[399958310,1766943040903,-1587.0,0.00016003,2]
[399958311,1766943040912,-1587.0,0.0001603,2]
[399958312,1766943040922,-500.0,0.00016047,2]
[399958313,1766943040931,-1587.0,0.00016058,2]
[399958314,1766943040941,-1587.0,0.00016085,2]
[399958315,1766943040950,-15221.84004313,0.00016107,2]
[399958316,1766943040960,-7355.78727548,0.00016107,2]
[399958317,1766943040969,-1587.0,0.00016113,2]
[399958318,1766943040979,-500.0,0.00016137,2]
[399958319,1766943040988,-150.0,0.00016137,2]
[399958320,1766943040998,-1587.0,0.0001614,2]
[399958321,1766943041008,-500.0,0.00016149,2]
[399958322,1766943041022,-1000.0,0.00016149,2]
[399958323,1766943041031,-558.6575319,0.00016149,2]
[399958324,1766943041041,-1000.0,0.00016149,2]
[399958325,1766943041050,-500.0,0.00016149,2]
[399958326,1766943041061,-200.0,0.00016149,2]
[399958327,1766943041070,-207.4,0.00016149,2]
[399958328,1766943041080,-215.0738,0.00016149,2]
[399958329,1766943041091,-223.0315306,0.00016149,2]
[399958330,1766943041100,-231.28369723,0.00016149,2]
[399958331,1766943041110,-239.84119403,0.00016149,2]
[399958332,1766943041119,-248.71531821,0.00016149,2]
[399958333,1766943041129,-257.91778498,0.00016149,2]
[399958334,1766943041139,-405.15229211,0.00016149,2]
[399958335,1766943041148,-284.76184806,0.00016149,2]
[399958336,1766943041158,-500.0,0.00016149,2]
[399958337,1766943041168,-500.0,0.00016149,2]
[399958338,1766943041178,-500.0,0.00016149,2]
[399958339,1766943041188,-500.0,0.00016149,2]
[399958340,1766943041198,-320.1146403,0.00016149,2]
[399958341,1766943041212,-1587.0,0.00016167,2]
[399958342,1766943041221,-1587.0,0.00016195,2]
[399958343,1766943041231,-5000.00409162,0.000162,5]
[399958344,1766943041242,-1602.23800588,0.00016222,2]
[399958345,1766943041258,-1032.25,0.00016263,2]
[399958346,1766943041268,-1667.0,0.00016273,2]
[399958347,1766943041279,-150.0,0.00016307,2]
[399958348,1766943041288,-1667.0,0.00016346,2]
[399958349,1766943041297,-15221.84004313,0.00016371,2]
[399958350,1766943041306,-7355.78727548,0.00016371,2]
[399958351,1766943041316,-500.0,0.00016438,2]
[399958352,1766943041326,-625.38854528,0.00016438,2]
[399958353,1766943041336,-625.38854528,0.00016438,2]
[399958354,1766943041345,-625.38854528,0.00016438,2]
[399958355,1766943041355,-625.38854528,0.00016438,2]
[399958356,1766943041365,-625.38854528,0.00016438,2]
[399958357,1766943041374,-625.38854528,0.00016438,2]
[399958358,1766943041384,-625.38854528,0.00016438,2]
[399958359,1766943041395,-625.38854528,0.00016438,2]
[399958360,1766943041405,-625.38854528,0.00016438,2]
[399958361,1766943041415,-625.38854528,0.00016438,2]
[399958362,1766943041424,-625.38854528,0.00016438,2]
[399958363,1766943041434,-625.38854528,0.00016438,2]
[399958364,1766943041444,-625.38854528,0.00016438,2]
[399958365,1766943041454,-625.38854528,0.00016438,2]
[399958366,1766943041463,-625.38854528,0.00016438,2]
[399958367,1766943041473,-625.38854528,0.00016438,2]
[399958368,1766943041483,-625.38854528,0.00016438,2]
[399958369,1766943041493,-625.38854528,0.00016438,2]
[399958370,1766943041503,-625.38854528,0.00016438,2]
[399958371,1766943041513,-625.38854528,0.00016438,2]
[399958372,1766943041524,-625.38854528,0.00016438,2]
[399958373,1766943041536,-625.38854528,0.00016438,2]
[399958374,1766943041547,-625.38854528,0.00016438,2]
[399958375,1766943041556,-625.38854528,0.00016438,2]
[399958376,1766943041566,-625.38854528,0.00016438,2]
[399958377,1766943041576,-625.38854528,0.00016438,2]
[399958378,1766943041586,-625.38854528,0.00016438,2]
[399958379,1766943041596,-625.38854528,0.00016438,2]
[399958380,1766943041606,-625.38854528,0.00016438,2]
[399958381,1766943041617,-625.38854528,0.00016438,2]
[399958382,1766943041628,-625.38854528,0.00016438,2]
[399958383,1766943041638,-625.38854528,0.00016438,2]
[399958384,1766943041648,-625.38854528,0.00016438,2]
[399958385,1766943041658,-625.38854528,0.00016438,2]
[399958386,1766943041668,-625.38854528,0.00016438,2]
[399958387,1766943041678,-625.38854528,0.00016438,2]
[399958388,1766943041687,-625.38854528,0.00016438,2]
[399958389,1766943041697,-625.38854528,0.00016438,2]
[399958390,1766943041707,-625.38854528,0.00016438,2]
[399958391,1766943041716,-625.38854528,0.00016438,2]
[399958392,1766943041725,-625.38854528,0.00016438,2]
[399958393,1766943041735,-625.38854528,0.00016438,2]
[399958394,1766943041745,-625.38854528,0.00016438,2]
[399958395,1766943041755,-625.38854528,0.00016438,2]
[399958396,1766943041765,-625.38854528,0.00016438,2]
[399958397,1766943041775,-625.38854528,0.00016438,2]
[399958398,1766943041785,-625.38854528,0.00016438,2]
[399958399,1766943041794,-625.38854528,0.00016438,2]
[399958400,1766943041804,-625.38854528,0.00016438,2]
[399958401,1766943041813,-625.38854528,0.00016438,2]
[399958402,1766943041823,-625.38854528,0.00016438,2]
[399958403,1766943041833,-625.38854528,0.00016438,2]
[399958404,1766943041843,-625.38854528,0.00016438,2]
[399958405,1766943041852,-625.38854528,0.00016438,2]
[399958406,1766943041862,-625.38854528,0.00016438,2]
[399958407,1766943041871,-625.38854528,0.00016438,2]
[399958408,1766943041881,-625.38854528,0.00016438,2]
[399958409,1766943041890,-625.38854528,0.00016438,2]
[399958410,1766943041912,-625.38854528,0.00016438,2]
[399958411,1766943041922,-625.38854528,0.00016438,2]
[399958412,1766943041932,-625.38854528,0.00016438,2]
[399958413,1766943041941,-621.07552082,0.00016438,2]
[399958414,1766943041950,-621.07552082,0.00016438,2]
[399958415,1766943041960,-621.07552082,0.00016438,2]
[399958416,1766943041969,-621.07552082,0.00016438,2]
[399958417,1766943041978,-621.07552082,0.00016438,2]
[399958418,1766943041988,-621.07552082,0.00016438,2]
[399958419,1766943042000,-621.07552082,0.00016438,2]
[399958420,1766943042013,-621.07552082,0.00016438,2]
[399958421,1766943042023,-621.07552082,0.00016438,2]
[399958422,1766943042033,-621.07552082,0.00016438,2]
[399958423,1766943042044,-621.07552082,0.00016438,2]
[399958424,1766943042055,-621.07552082,0.00016438,2]
[399958425,1766943042066,-621.07552082,0.00016438,2]
[399958426,1766943042076,-621.07552082,0.00016438,2]
[399958427,1766943042087,-621.07552082,0.00016438,2]
[399958428,1766943042097,-621.07552082,0.00016438,2]
[399958429,1766943042107,-621.07552082,0.00016438,2]
[399958430,1766943042118,-621.07552082,0.00016438,2]
[399958431,1766943042128,-621.07552082,0.00016438,2]
[399958432,1766943042139,-621.07552082,0.00016438,2]
[399958433,1766943042149,-621.07552082,0.00016438,2]
[399958434,1766943042159,-621.07552082,0.00016438,2]
[399958435,1766943042170,-621.07552082,0.00016438,2]
[399958436,1766943042181,-621.07552082,0.00016438,2]
[399958437,1766943042192,-621.07552082,0.00016438,2]
[399958438,1766943042204,-621.07552082,0.00016438,2]
[399958439,1766943042216,-621.07552082,0.00016438,2]
[399958440,1766943042226,-621.07552082,0.00016438,2]
[399958441,1766943042237,-621.07552068,0.00016438,2]
[399958442,1766943042246,-515.48135853,0.00016465,2]
[399958443,1766943042255,-152.09829773,0.00016467,2]
[399958445,1766943042264,-150.0,0.00016477,2]
[399958447,1766943042273,-1000.0,0.00016521,2]
[399958448,1766943042282,-1667.0,0.00016521,2]
[399958450,1766943042292,-1032.31322688,0.00016537,2]
[399958452,1766943042301,-1740.9,0.00016618,2]
[399958453,1766943042310,-15221.84004313,0.00016636,2]
[399958454,1766943042319,-7355.78727548,0.00016636,2]